bitfinex/quotes_SOLUSD_20250414
["timestamp","ask_amount","ask_price","bid_price","bid_amount"]
[1744592491499,0.03,130.71,130.67,34.51909791]
[1744592491704,0.03,130.71,130.68,28.39689791]
[1744592491896,0.03,130.71,130.67,34.51909791]
[1744592492203,28.42689791,130.71,130.67,34.51909791]
[1744592492405,0.03,130.71,130.68,28.39689791]
[1744592492601,0.03,130.71,130.67,6.1222]
[1744592492805,0.03,130.71,130.67,34.51909791]
[1744592493202,34.54729791,130.71,130.66,28.39689791]
[1744592493507,28.42689791,130.71,130.66,34.51959791]
[1744592493701,0.03,130.71,130.67,28.39689791]
[1744592494310,28.42689791,130.71,130.66,34.51959791]
[1744592494506,28.42689791,130.71,130.67,28.39689791]
[1744592494507,0.03,130.71,130.67,28.39689791]
[1744592495021,28.42689791,130.71,130.66,34.51959791]
[1744592495191,0.03,130.71,130.67,28.39689791]
[1744592495730,0.03,130.71,130.67,34.51909791]
[1744592497118,0.03,130.71,130.69,28.39689791]
[1744592497998,0.03,130.71,130.69,34.51819791]
[1744592498196,28.39689791,130.7,130.61,84.2353]
[1744592498403,28.39689791,130.63,130.59,14.5856]
[1744592498834,28.39689791,130.64,130.6,0.063]
[1744592499127,19.2553443,130.63,130.6,0.063]
[1744592499311,19.2553443,130.61,130.6,0.063]
[1744592499698,19.2553443,130.62,130.6,0.063]
[1744592500622,6.1218,130.68,130.61,0.14216157]
[1744592500799,19.2553443,130.69,130.64,19.2553443]
[1744592501005,0.03,130.71,130.68,19.2553443]
[1744592501315,0.03,130.71,130.69,19.2553443]
[1744592502007,0.03,130.71,130.69,25.3766443]
[1744592502630,0.03,130.71,130.68,6.1217]
[1744592502807,0.03,130.71,130.68,25.3770443]
[1744592503008,0.03,130.71,130.7,19.2553443]
[1744592503202,0.03,130.71,130.7,28.81662396]
[1744592503511,0.03,130.71,130.7,0.42648471]
[1744592503714,0.03,130.71,130.68,21.4262]
[1744592503715,0.03,130.71,130.67,6.54858471]
[1744592503925,28.42013925,130.71,130.67,6.54858471]
[1744592504228,0.03,130.71,130.67,34.93872396]
[1744592504532,0.03,130.71,130.68,28.39013925]
[1744592504834,0.03,130.71,130.67,34.93872396]
[1744592505131,28.39013925,130.7,130.67,6.54858471]
[1744592505433,28.39013925,130.7,130.66,8.44]
[1744592505606,28.39013925,130.69,130.66,8.44]
[1744592505909,28.39013925,130.69,130.64,28.53230082]
[1744592506116,28.39013925,130.69,130.65,0.42648471]
[1744592506315,28.39013925,130.7,130.65,28.81662396]
[1744592506914,28.39013925,130.69,130.65,0.42648471]
[1744592507530,28.39013925,130.69,130.64,34.51373925]
[1744592507712,28.39013925,130.69,130.63,27.08964886]
[1744592507713,28.39013925,130.66,130.61,112.62543925]
[1744592508054,28.39013925,130.66,130.62,6.26676157]
[1744592508535,28.39013925,130.67,130.62,34.65690082]
[1744592510035,34.51243925,130.67,130.62,34.65690082]
[1744592510212,28.39013925,130.64,130.6,8.503]
[1744592510412,6.1223,130.67,130.6,8.503]
[1744592510413,28.39013925,130.63,130.6,8.503]
[1744592510625,28.39013925,130.62,130.6,8.503]
[1744592510939,28.39013925,130.61,130.6,0.063]
[1744592512126,54.39013925,130.62,130.6,0.063]
[1744592512346,26.0,130.62,130.6,0.063]
[1744592512542,54.39013925,130.62,130.6,0.063]
[1744592512748,28.39013925,130.62,130.6,0.063]
[1744592513525,28.39013925,130.63,130.6,0.063]
[1744592513750,28.39013925,130.64,130.6,0.063]
[1744592514045,8.44,130.68,130.6,0.063]
[1744592514046,28.39013925,130.68,130.62,28.39013925]
[1744592514246,28.39013925,130.66,130.61,28.39013925]
[1744592515350,28.39013925,130.66,130.61,34.51483925]
[1744592515552,34.51263925,130.67,130.62,28.39013925]
[1744592515844,28.39013925,130.66,130.61,34.51483925]
[1744592517840,28.39013925,130.64,130.6,6.1884]
[1744592518053,28.39013925,130.67,130.62,28.39013925]
[1744592518233,28.39013925,130.68,130.62,28.39013925]
[1744592519150,28.39013925,130.66,130.6,7.8095]
[1744592519449,28.39013925,130.66,130.61,28.81662396]
[1744592520351,34.51303925,130.66,130.61,28.39013925]
[1744592520652,28.39013925,130.62,130.6,0.063]
[1744592520846,73.18194968,130.61,130.6,0.063]
[1744592521054,73.18194968,130.61,130.56,0.063]
[1744592521055,28.39013925,130.57,130.56,0.063]
[1744592521435,56.7802785,130.57,130.56,0.063]
[1744592521637,75.85641207,130.57,130.56,0.063]
[1744592521845,28.39013925,130.57,130.56,0.063]
[1744592522647,34.51703925,130.57,130.56,0.063]
[1744592522949,44.79181043,130.55,130.54,0.063]
[1744592523257,73.46627282,130.55,130.54,0.063]
[1744592524455,79.59417282,130.55,130.54,0.063]
[1744592524639,60.51803925,130.55,130.54,0.063]
[1744592525958,28.39013925,130.55,130.54,0.063]
[1744592526159,34.51803925,130.55,130.54,0.063]
[1744592526331,28.39013925,130.55,130.54,0.063]
[1744592527857,34.51803925,130.55,130.54,0.063]
[1744592528946,53.59417282,130.55,130.54,0.063]
[1744592529544,34.51803925,130.55,130.54,0.063]
[1744592529747,53.59417282,130.55,130.54,0.063]
[1744592529942,25.03754886,130.54,130.52,0.063]
[1744592530143,47.46627282,130.53,130.52,0.063]
[1744592530659,53.59507282,130.53,130.52,0.063]
[1744592530862,45.07613357,130.51,130.5,0.063]
[1744592531039,73.46627282,130.51,130.5,0.063]
[1744592531243,6.1288,130.53,130.5,0.063]
[1744592531535,28.39013925,130.54,130.5,0.063]
[1744592531738,28.39013925,130.52,130.5,0.063]
[1744592532766,28.39013925,130.51,130.5,0.063]
[1744592533234,47.46627282,130.51,130.5,0.063]
[1744592533435,28.39013925,130.51,130.5,0.063]
[1744592534867,59.98387282,130.51,130.5,0.0001]
[1744592536046,34.51983925,130.51,130.5,0.0001]
[1744592536244,28.39013925,130.51,130.5,0.0001]
[1744592536854,34.51983925,130.51,130.5,0.0001]
[1744592537061,28.39013925,130.51,130.5,0.0001]
[1744592539065,34.51983925,130.51,130.5,0.0001]
[1744592540571,28.39013925,130.51,130.5,0.0001]
[1744592541262,19.28802558,130.55,130.5,0.0001]
[1744592541644,19.28802558,130.55,130.5,19.28812558]
[1744592541973,0.14216157,130.61,130.53,19.28802558]
[1744592542167,19.28802558,130.56,130.51,19.28802558]
[1744592542351,19.28802558,130.55,130.5,101.88812558]
[1744592542548,19.28802558,130.54,130.5,82.6001]
[1744592542754,19.28802558,130.52,130.5,0.0001]
[1744592543254,28.4898362,130.53,130.5,0.0001]
[1744592543463,28.4898362,130.54,130.5,0.0001]
[1744592543651,28.4898362,130.56,130.52,0.42648471]
[1744592543851,28.4898362,130.58,130.53,28.4898362]
[1744592544374,28.4898362,130.57,130.52,28.91632091]
[1744592544859,28.4898362,130.57,130.52,35.04512091]
[1744592545590,28.4898362,130.58,130.53,28.4898362]
[1744592545763,28.4898362,130.58,130.53,36.5795362]
[1744592546667,28.4898362,130.58,130.54,6.1283]
[1744592547482,0.03,130.61,130.56,28.4898362]
[1744592547774,28.4898362,130.58,130.55,82.6]
[1744592547978,28.4898362,130.58,130.54,6.1283]
[1744592548176,28.4898362,130.57,130.53,14.2184]
[1744592548679,28.4898362,130.58,130.53,42.7082362]
[1744592548856,28.4898362,130.6,130.55,28.4898362]
[1744592549057,28.5198362,130.61,130.56,28.63199777]
[1744592549285,0.03,130.61,130.58,28.4898362]
[1744592549700,0.03,130.61,130.57,0.14216157]
[1744592549992,0.03,130.61,130.59,28.77415934]
[1744592550191,0.03,130.61,130.6,28.4898362]
[1744592550401,0.03,130.61,130.6,138.25566977]
[1744592550564,0.03,130.65,130.61,19.07613357]
[1744592550889,0.03,130.65,130.64,28.91632091]
[1744592551061,0.03,130.7,130.67,26.0]
[1744592551270,0.03,130.7,130.69,28.91632091]
[1744592551461,0.03,130.7,130.68,36.5795362]
[1744592552380,0.03,130.7,130.68,8.0897]
[1744592552559,0.03,130.7,130.68,42.7010362]
[1744592554192,0.03,130.7,130.68,1.5033]
[1744592554369,0.03,130.7,130.68,36.1146362]
[1744592554576,0.03,130.7,130.69,47.56596977]
[1744592555182,0.03,130.7,130.69,0.42648471]
[1744592555894,0.03,130.7,130.67,14.5621]
[1744592556276,0.03,130.7,130.67,43.0519362]
[1744592556496,0.03,130.7,130.69,28.63199777]
[1744592556792,0.03,130.7,130.69,130.16596977]
[1744592557170,0.03,130.7,130.69,111.51632091]
[1744592557469,0.03,130.7,130.67,48.51744886]
[1744592557470,0.03,130.7,130.67,8.44]
[1744592557671,28.4898362,130.69,130.65,6.5864]
[1744592557863,28.4898362,130.68,130.64,1.5033]
[1744592558069,28.4898362,130.69,130.64,29.9931362]
[1744592558394,34.6113362,130.69,130.64,29.9931362]
[1744592558596,28.4898362,130.67,130.64,1.5033]
[1744592558783,28.4898362,130.68,130.64,7.6269]
[1744592558963,28.4898362,130.68,130.64,1.5033]
[1744592559279,28.4898362,130.67,130.63,82.6]
[1744592560615,34.6122362,130.67,130.62,41.34279777]
[1744592560775,28.4898362,130.66,130.61,82.6]
[1744592561091,28.4898362,130.65,130.6,9.9433]
[1744592561309,28.4898362,130.66,130.61,28.63199777]
[1744592561604,6.1219,130.68,130.62,28.77415934]
[1744592561605,28.4898362,130.67,130.62,28.77415934]
[1744592562280,28.4898362,130.66,130.61,28.4898362]
[1744592562483,28.4898362,130.65,130.6,38.4331362]
[1744592562685,28.4898362,130.66,130.61,28.4898362]
[1744592563215,6.1213,130.69,130.63,19.24044781]
[1744592563373,0.03,130.7,130.68,19.24044781]
[1744592563691,0.03,130.7,130.69,19.66693252]
[1744592563888,0.03,130.7,130.69,120.91658138]
[1744592564813,0.03,130.7,130.69,127.03788138]
[1744592565103,0.03,130.71,130.7,0.42648471]
[1744592566069,0.03,130.71,130.7,28.80608953]
[1744592566309,0.03,130.71,130.7,47.45573839]
[1744592566794,0.03,130.71,130.7,53.57653839]
[1744592569901,0.03,130.71,130.7,136.17653839]
[1744592570786,0.03,130.72,130.7,136.17653839]
[1744592571095,0.03,130.72,130.71,37.22608953]
[1744592571410,0.03,130.72,130.71,119.82608953]
[1744592571783,0.03,130.72,130.71,125.94648953]
[1744592573117,0.03,130.72,130.71,144.31181525]
[1744592573280,0.03,130.72,130.71,144.59613839]
[1744592577713,0.03,130.72,130.71,125.66216639]
[1744592578089,0.03,130.72,130.71,125.94648953]
[1744592578609,0.03,130.72,130.71,125.66216639]
[1744592579110,0.03,130.72,130.71,125.94648953]
[1744592579308,0.03,130.72,130.71,144.59613839]
[1744592579814,0.0001,130.72,130.71,144.59613839]
[1744592582014,0.0001,130.72,130.71,172.97574321]
[1744592582220,0.03,130.75,130.74,54.80608953]
[1744592582386,0.03,130.75,130.74,137.40608953]
[1744592583395,0.063,130.76,130.75,20.60583357]
[1744592583596,0.063,130.76,130.75,48.98543839]
[1744592585426,0.063,130.76,130.75,26.72433357]
[1744592585717,0.063,130.76,130.74,82.6]
[1744592585924,28.44260482,130.76,130.72,88.7197]
[1744592586125,28.44260482,130.76,130.72,82.6]
[1744592586303,28.37960482,130.74,130.69,28.37960482]
[1744592587115,28.44260482,130.76,130.71,28.37960482]
[1744592587317,0.063,130.76,130.75,19.21694021]
[1744592587504,0.063,130.76,130.74,19.21694021]
[1744592587707,0.063,130.76,130.74,25.33594021]
[1744592588022,0.063,130.76,130.73,25.33624021]
[1744592588920,0.063,130.76,130.72,108.36312492]
[1744592589315,0.063,130.76,130.72,101.81694021]
[1744592589622,0.063,130.76,130.72,107.93674021]
[1744592590423,0.063,130.76,130.73,19.64342492]
[1744592590726,0.063,130.76,130.72,107.93674021]
[1744592591700,19.21694021,130.73,130.68,6.1218]
[1744592591903,19.21694021,130.72,130.67,101.81694021]
[1744592592720,19.21694021,130.72,130.67,82.6]
[1744592592928,25.33704021,130.72,130.67,88.7221]
[1744592593421,25.33704021,130.72,130.66,8.463]
[1744592593422,19.21694021,130.7,130.66,8.463]
[1744592593620,19.21694021,130.68,130.66,0.063]
[1744592593823,19.21694021,130.69,130.66,0.063]
[1744592594005,19.21694021,130.7,130.66,0.063]
[1744592594322,19.21694021,130.71,130.66,25.54480178]
[1744592594700,19.21694021,130.72,130.67,19.50126335]
[1744592594899,25.33444021,130.73,130.68,25.33874021]
[1744592595126,19.21694021,130.72,130.68,6.1218]
[1744592595625,19.21694021,130.72,130.67,6.1221]
[1744592596337,19.21694021,130.71,130.66,14.72776157]
[1744592596505,19.21694021,130.7,130.66,14.5856]
[1744592597421,19.21694021,130.68,130.66,8.463]
[1744592597614,19.21694021,130.67,130.66,0.063]
[1744592598098,19.21694021,130.68,130.66,0.063]
[1744592598298,19.21694021,130.69,130.66,0.063]
[1744592598813,19.21694021,130.67,130.66,0.063]
[1744592600726,89.02,130.72,130.66,19.27994021]
[1744592600929,19.21694021,130.71,130.66,19.27994021]
[1744592601109,19.21694021,130.7,130.66,0.063]
[1744592601314,19.21694021,130.69,130.66,0.063]
[1744592601835,31.45404021,130.73,130.68,19.21694021]
[1744592602009,25.33654021,130.73,130.68,19.21694021]
[1744592602209,19.21694021,130.74,130.69,19.21694021]
[1744592602413,8.2859,130.76,130.69,19.21694021]
[1744592602729,8.2859,130.76,130.73,19.21694021]
[1744592602730,0.063,130.76,130.73,19.21694021]
[1744592602909,0.063,130.76,130.74,19.21694021]
[1744592603304,0.063,130.76,130.75,19.21694021]
[1744592603730,0.063,130.76,130.75,38.29307378]
[1744592603923,0.063,130.76,130.75,39.86107378]
[1744592604710,0.063,130.76,130.75,45.97957378]
[1744592606136,0.063,130.76,130.75,25.33544021]
[1744592606439,0.063,130.76,130.75,25.76192492]
[1744592606607,0.063,130.76,130.75,44.41157378]
[1744592607209,0.0001,130.76,130.75,44.41157378]
[1744592608530,0.03,130.78,130.77,26.14216157]
[1744592608733,0.03,130.78,130.77,142.76102492]
[1744592609245,0.03,130.78,130.77,161.41067378]
[1744592609612,0.0001,130.78,130.77,167.86997378]
[1744592609813,0.03,130.81,130.8,44.64964886]
[1744592610011,0.03,130.81,130.8,63.86658907]
[1744592610207,0.03,130.81,130.8,83.51001399]
[1744592610814,0.03,130.81,130.8,89.62621399]
[1744592611048,0.03,130.81,130.8,70.40927378]
[1744592614508,0.03,130.81,130.8,89.62621399]
[1744592615248,0.03,130.81,130.8,172.22621399]
[1744592615834,0.03,130.82,130.81,0.42648471]
[1744592616041,0.03,130.82,130.81,19.64342492]
[1744592616252,2.6622824,130.86,130.81,19.64342492]
[1744592616253,2.6622824,130.86,130.85,44.64964886]
[1744592616435,2.6622824,130.86,130.85,45.50126335]
[1744592616633,2.6622824,130.86,130.85,45.64342492]
[1744592617220,2.6622824,130.86,130.84,8.4]
[1744592617434,2.6622824,130.86,130.84,27.61694021]
[1744592617615,2.6622824,130.86,130.85,25.33074021]
[1744592617815,2.6622824,130.86,130.85,6.1138]
[1744592618735,2.6622824,130.86,130.84,8.4]
[1744592619219,2.6622824,130.86,130.84,14.5142]
[1744592619546,2.6622824,130.86,130.84,8.4]
[1744592620929,2.6622824,130.86,130.83,19.21694021]
[1744592621337,2.6622824,130.86,130.82,107.93194021]
[1744592621719,27.99272261,130.86,130.82,82.6]
[1744592621916,19.21694021,130.84,130.8,97.096]
[1744592622644,19.21694021,130.85,130.8,116.31294021]
[1744592622857,21.87922261,130.86,130.81,25.33224021]
[1744592623162,21.87922261,130.86,130.83,19.21694021]
[1744592623163,2.6622824,130.86,130.83,19.21694021]
[1744592623445,2.6622824,130.86,130.82,19.64342492]
[1744592623753,21.87922261,130.86,130.82,0.42648471]
[1744592623937,19.21694021,130.84,130.8,90.98]
[1744592624335,19.21694021,130.82,130.78,82.6]
[1744592624959,19.21694021,130.83,130.78,107.93404021]
[1744592625446,25.33174021,130.83,130.78,107.93404021]
[1744592625643,19.21694021,130.84,130.79,19.21694021]
[1744592625851,6.4876,130.85,130.79,19.21694021]
[1744592625852,25.70454021,130.85,130.79,19.21694021]
[1744592626243,31.81834021,130.85,130.79,19.21694021]
[1744592626431,19.21694021,130.84,130.79,19.21694021]
[1744592626649,2.6622824,130.86,130.81,19.21694021]
[1744592626950,2.6622824,130.86,130.84,19.21694021]
[1744592627146,2.6622824,130.86,130.83,19.64342492]
[1744592627344,2.6622824,130.86,130.84,19.21694021]
[1744592628959,2.6622824,130.86,130.84,25.33124021]
[1744592629167,19.21694021,130.85,130.82,82.6]
[1744592629641,19.21694021,130.85,130.81,8.38]
[1744592629850,19.21694021,130.84,130.81,8.38]
[1744592630056,19.21694021,130.84,130.79,25.33334021]
[1744592630269,19.21694021,130.82,130.77,8.38]
[1744592630564,19.21694021,130.82,130.77,27.59694021]
[1744592630866,19.21694021,130.83,130.78,19.21694021]
[1744592631156,19.21694021,130.83,130.78,25.33374021]
[1744592631360,19.21694021,130.85,130.8,19.35910178]
[1744592631536,21.87922261,130.86,130.81,19.21694021]
[1744592631737,27.99262261,130.86,130.81,19.21694021]
[1744592633065,21.87922261,130.86,130.82,6.1152]
[1744592633279,2.6622824,130.86,130.82,25.33214021]
[1744592633865,2.6622824,130.86,130.83,38.29307378]
[1744592634175,2.6622824,130.86,130.84,19.21694021]
[1744592634663,2.6622824,130.86,130.83,19.64342492]
[1744592635170,2.6622824,130.86,130.84,25.33124021]
[1744592635552,2.6622824,130.86,130.84,6.1143]
[1744592636375,2.6622824,130.86,130.83,25.75802492]
[1744592637464,27.99272261,130.86,130.82,90.98]
[1744592637653,19.21694021,130.85,130.82,90.98]
[1744592637842,19.21694021,130.85,130.82,82.6]
[1744592638740,27.99272261,130.86,130.82,82.6]
[1744592640363,27.99272261,130.86,130.78,90.98]
[1744592640364,19.21694021,130.83,130.78,90.98]
[1744592640572,19.21694021,130.82,130.78,90.98]
[1744592640767,10.3564824,130.86,130.79,19.64342492]
[1744592640942,8.7757824,130.86,130.81,19.21694021]
[1744592641349,2.6622824,130.86,130.84,19.21694021]
[1744592641542,2.6622824,130.86,130.85,19.21694021]
[1744592642253,2.6622824,130.86,130.82,19.64342492]
[1744592642443,2.6622824,130.86,130.84,0.42648471]
[1744592642648,2.6622824,130.86,130.85,19.21694021]
[1744592642943,2.6622824,130.86,130.85,102.24342492]
[1744592643244,2.6622824,130.86,130.85,120.89307378]
[1744592643445,2.6622824,130.86,130.85,127.00687378]
[1744592644569,2.6622824,130.86,130.85,128.64517378]
[1744592644747,2.6622824,130.86,130.85,46.04517378]
[1744592646068,2.6622824,130.86,130.85,44.40687378]
[1744592647173,2.6622824,130.86,130.85,25.75722492]
[1744592647671,2.6622824,130.86,130.85,44.40687378]
[1744592649167,2.6622824,130.86,130.85,108.35722492]
[1744592649377,27.99262261,130.86,130.82,82.6]
[1744592649547,19.21694021,130.83,130.77,19.21694021]
[1744592649750,19.21694021,130.81,130.77,6.1176]
[1744592650144,19.21694021,130.81,130.76,107.99774021]
[1744592650346,19.21694021,130.8,130.76,0.063]
[1744592650762,19.21694021,130.78,130.76,0.063]
[1744592651258,19.21694021,130.77,130.76,0.063]
[1744592654274,25.33454021,130.77,130.76,0.063]
[1744592654571,19.21694021,130.77,130.76,0.063]
[1744592654754,19.21694021,130.78,130.76,0.063]
[1744592655356,25.33424021,130.78,130.76,0.063]
[1744592656976,19.21694021,130.77,130.76,0.063]
[1744592657486,18.79181043,130.76,130.72,0.063]
[1744592657667,19.21694021,130.73,130.72,0.063]
[1744592659476,19.21694021,130.74,130.72,0.063]
[1744592660774,19.21694021,130.73,130.72,0.063]
[1744592662951,25.33634021,130.73,130.72,0.063]
[1744592663154,70.29061399,130.73,130.72,0.063]
[1744592663489,70.29061399,130.73,130.68,0.063]
[1744592663490,26.14216157,130.7,130.68,0.063]
[1744592663651,45.21694021,130.69,130.66,0.063]
[1744592663855,6.6612,130.66,130.64,0.063]
[1744592664055,6.1236,130.64,130.6,0.063]
[1744592664283,19.21694021,130.61,130.6,0.063]
[1744592665893,25.34204021,130.61,130.6,0.063]
[1744592668962,19.21694021,130.62,130.6,0.063]
[1744592669182,19.21694021,130.63,130.6,0.063]
[1744592669490,14.4828,130.66,130.6,0.063]
[1744592669692,19.21694021,130.64,130.6,0.063]
[1744592669985,19.21694021,130.62,130.6,0.063]
[1744592670183,14.4828,130.66,130.6,0.063]
[1744592670184,19.21694021,130.61,130.6,0.063]
[1744592670863,19.21694021,130.64,130.6,0.063]
[1744592671773,19.21694021,130.63,130.6,0.063]
[1744592673770,19.21694021,130.62,130.6,0.063]
[1744592674076,19.21694021,130.61,130.6,0.063]
[1744592674277,38.00875064,130.61,130.6,0.063]
[1744592674485,38.29307378,130.61,130.6,0.063]
[1744592674889,46.67307378,130.61,130.6,0.063]
[1744592675184,25.20163357,130.6,130.59,0.063]
[1744592675374,44.41857378,130.6,130.59,0.063]
[1744592675875,44.41857378,130.6,130.56,0.063]
[1744592675876,26.0,130.57,130.56,0.063]
[1744592676182,83.51001399,130.57,130.56,0.063]
[1744592676563,19.07613357,130.56,130.55,0.063]
[1744592676769,65.89001399,130.56,130.55,0.063]
[1744592677179,72.01741399,130.56,130.55,0.063]
[1744592677489,27.59694021,130.56,130.55,0.063]
[1744592677992,72.01741399,130.56,130.55,0.063]
[1744592678294,19.07613357,130.55,130.5,0.0001]
[1744592678589,38.29307378,130.55,130.5,0.0001]
[1744592678988,19.21694021,130.55,130.5,0.0001]
[1744592679192,19.21694021,130.55,130.51,6.1297]
[1744592679670,26.0,130.57,130.51,40.67104021]
[1744592679986,19.21694021,130.56,130.51,40.67104021]
[1744592681198,19.21694021,130.58,130.53,19.21694021]
[1744592681570,97.4056,130.6,130.52,19.70642492]
[1744592681571,19.21694021,130.57,130.52,19.70642492]
[1744592681772,19.21694021,130.55,130.52,0.063]
[1744592682095,19.21694021,130.57,130.52,0.063]
[1744592682395,19.21694021,130.57,130.52,19.27994021]
[1744592682598,97.4056,130.6,130.52,19.27994021]
[1744592682599,19.21694021,130.56,130.52,0.063]
[1744592684899,6.126,130.59,130.52,0.063]
[1744592685090,19.21694021,130.56,130.52,0.063]
[1744592685590,19.21694021,130.55,130.52,0.063]
[1744592686193,19.21694021,130.56,130.52,0.063]
[1744592686593,6.126,130.59,130.52,19.27994021]
[1744592686800,19.21694021,130.56,130.52,0.063]
[1744592687171,19.21694021,130.57,130.52,19.27994021]
[1744592689199,19.21694021,130.57,130.53,6.1288]
[1744592689382,19.21694021,130.59,130.54,25.43924021]
[1744592689899,19.21694021,130.57,130.54,6.2223]
[1744592690211,19.21694021,130.58,130.54,6.2223]
[1744592691401,19.21694021,130.57,130.54,6.2223]
[1744592692098,19.21694021,130.57,130.54,12.3506]
[1744592692297,19.21694021,130.58,130.54,12.3506]
[1744592693507,6.0816,130.66,130.57,19.21694021]
[1744592693799,19.21694021,130.66,130.6,19.21694021]
[1744592693998,19.21694021,130.67,130.62,19.21694021]
[1744592694198,19.21694021,130.68,130.63,19.21694021]
[1744592695501,19.21694021,130.68,130.64,6.1236]
[1744592697876,21.4247,130.69,130.59,20.15124886]
[1744592698078,19.21694021,130.61,130.59,1.5016]
[1744592698478,19.21694021,130.63,130.59,1.5016]
[1744592699404,19.21694021,130.63,130.59,7.6276]
[1744592699602,6.1224,130.67,130.6,0.28432314]
[1744592699804,6.1219,130.68,130.61,19.21694021]
[1744592700004,6.1219,130.68,130.63,19.21694021]
[1744592700005,19.21694021,130.68,130.63,19.21694021]
[1744592700597,19.21694021,130.67,130.62,19.21694021]
[1744592701205,19.24694021,130.7,130.65,25.66056335]
[1744592701515,19.21694021,130.66,130.61,6.1593]
[1744592701684,19.21694021,130.62,130.59,15.9873]
[1744592701879,19.21694021,130.61,130.58,6.1593]
[1744592702491,83.32648471,130.69,130.59,0.42648471]
[1744592702814,19.21694021,130.63,130.58,31.50264021]
[1744592702992,82.93,130.69,130.59,38.15091221]
[1744592703192,19.21694021,130.65,130.6,19.21694021]
[1744592703514,19.21694021,130.64,130.6,6.26766157]
[1744592704109,19.21694021,130.65,130.6,6.26766157]
[1744592704801,19.21694021,130.61,130.58,88.7593]
[1744592705001,19.21694021,130.61,130.58,6.1593]
[1744592706308,19.21694021,130.59,130.55,92.4616]
[1744592706609,19.21694021,130.58,130.55,9.8616]
[1744592706913,19.21694021,130.58,130.55,1.5016]
[1744592707404,19.21694021,130.59,130.55,7.6294]
[1744592707608,19.21694021,130.58,130.55,1.5016]
[1744592709111,25.34344021,130.58,130.55,1.5016]
[1744592709684,19.21694021,130.56,130.54,0.063]
[1744592710198,6.1265,130.58,130.54,0.063]
[1744592710398,19.21694021,130.57,130.54,0.063]
[1744592712699,19.21694021,130.55,130.54,0.063]
[1744592713105,25.34484021,130.55,130.54,0.063]
[1744592713724,44.13665064,130.55,130.54,0.063]
[1744592713899,44.42097378,130.55,130.54,0.063]
[1744592714389,25.34484021,130.55,130.54,0.063]
[1744592715714,25.34484021,130.55,130.52,0.0001]
[1744592715715,45.07613357,130.53,130.52,0.0001]
[1744592715901,45.07613357,130.53,130.5,0.0001]
[1744592715902,64.29307378,130.53,130.5,0.0001]
[1744592716096,19.21694021,130.51,130.5,0.0001]
[1744592717109,25.34664021,130.51,130.5,0.0001]
[1744592718430,44.42277378,130.51,130.49,0.063]
[1744592718723,19.21694021,130.5,130.49,0.063]
[1744592719091,25.34714021,130.5,130.49,0.063]
[1744592719517,44.42327378,130.5,130.48,0.063]
[1744592719822,45.07613357,130.47,130.44,0.063]
[1744592719999,64.29307378,130.47,130.44,0.063]
[1744592720209,19.07613357,130.46,130.44,0.063]
[1744592720404,45.07613357,130.43,130.42,0.063]
[1744592720728,45.21694021,130.43,130.42,0.063]
[1744592721394,25.35044021,130.43,130.42,0.063]
[1744592721923,51.35044021,130.43,130.42,0.063]
[1744592722127,70.42657378,130.43,130.42,0.063]
[1744592722495,51.35044021,130.43,130.42,0.063]
[1744592722698,70.42657378,130.43,130.42,0.063]
[1744592723198,70.42657378,130.43,130.39,0.0001]
[1744592723199,26.0,130.4,130.39,0.0001]
[1744592723397,0.28432314,130.38,130.33,0.063]
[1744592723701,38.00875064,130.37,130.33,0.063]
[1744592723918,38.29307378,130.34,130.33,0.063]
[1744592724097,38.29307378,130.34,130.33,0.0001]
[1744592724610,19.21694021,130.34,130.33,0.0001]
[1744592725215,19.21694021,130.35,130.33,0.0001]
[1744592725410,19.21694021,130.34,130.33,0.0001]
[1744592726127,38.29307378,130.34,130.33,0.0001]
[1744592726625,26.0,130.31,130.26,1.6512]
[1744592726809,19.21694021,130.27,130.23,6.2097]
[1744592727323,19.21694021,130.26,130.23,6.2097]
[1744592727506,25.35814021,130.27,130.23,6.2097]
[1744592728029,19.21694021,130.26,130.23,6.2097]